bitfinex-derivatives/quotes_BTCF0:USTF0_20241213
["timestamp","ask_amount","ask_price","bid_price","bid_amount"]
[1734124049439,0.45001336,101570.0,101560.0,0.41248624]
[1734124049942,0.30269063,101570.0,101560.0,0.41248624]
[1734124050246,0.45001336,101570.0,101560.0,0.41248624]
[1734124054140,0.45001336,101570.0,101560.0,0.17678121]
[1734124054141,0.81081336,101570.0,101560.0,0.17678121]
[1734124054548,0.69294445,101570.0,101560.0,0.17678121]
[1734124055445,0.69294445,101570.0,101560.0,0.41248624]
[1734124057045,0.33214445,101570.0,101560.0,0.41248624]
[1734124057243,0.69294445,101570.0,101560.0,0.41248624]
[1734124057544,0.73307311,101570.0,101560.0,0.17678121]
[1734124057749,0.049209,101560.0,101550.0,0.39033608]
[1734124057949,0.68260116,101560.0,101550.0,0.39033608]
[1734124058352,1.25079296,101560.0,101550.0,0.17678121]
[1734124058540,0.049219,101540.0,101530.0,1.1792828]
[1734124058738,0.61613122,101540.0,101530.0,0.53082089]
[1734124058940,0.61613122,101540.0,101530.0,0.5307]
[1734124058941,0.67501255,101540.0,101530.0,0.5307]
[1734124059557,0.52779741,101540.0,101530.0,0.5307]
[1734124059943,0.61608455,101540.0,101530.0,0.5307]
[1734124061457,0.49830614,101540.0,101530.0,0.5307]
[1734124061648,0.13750614,101540.0,101530.0,0.5307]
[1734124064951,0.1528148,101540.0,101530.0,0.5307]
[1734124065652,0.1528148,101540.0,101530.0,1.7307]
[1734124066351,0.06452766,101540.0,101530.0,1.7307]
[1734124067256,0.06452766,101540.0,101530.0,1.79178388]
[1734124068046,0.07446704,101540.0,101530.0,1.79178388]
[1734124071263,0.1966348,101540.0,101530.0,0.5]
[1734124071446,0.049224,101530.0,101520.0,0.53477726]
[1734124071754,0.049224,101530.0,101520.0,1.23477726]
[1734124071755,0.48641654,101530.0,101520.0,1.23477726]
[1734124071949,0.51761654,101530.0,101520.0,1.73477726]
[1734124072146,0.60590368,101530.0,101520.0,1.73477726]
[1734124072560,0.51761654,101530.0,101520.0,1.7333]
[1734124073155,0.60590368,101530.0,101520.0,1.7333]
[1734124073457,0.51761654,101530.0,101520.0,1.7]
[1734124073758,0.049229,101520.0,101510.0,0.942834]
[1734124073959,0.12559641,101520.0,101510.0,0.442834]
[1734124074160,0.12559644,101520.0,101510.0,1.642834]
[1734124074665,0.11031288,101520.0,101510.0,1.642334]
[1734124074955,0.11031288,101520.0,101510.0,2.142334]
[1734124075361,0.55665458,101530.0,101510.0,2.20341788]
[1734124075560,0.08172452,101520.0,101510.0,2.20341788]
[1734124075752,0.049234,101520.0,101510.0,2.20391788]
[1734124077655,0.049234,101520.0,101510.0,2.20341788]
[1734124078061,0.06452198,101520.0,101510.0,2.20341788]
[1734124079065,0.12560586,101520.0,101510.0,2.15418388]
[1734124079756,0.12560586,101520.0,101510.0,2.20342188]
[1734124080462,0.11031788,101520.0,101510.0,2.20342188]
[1734124080662,0.06452664,101520.0,101510.0,2.20342188]
[1734124080864,0.01529264,101520.0,101510.0,2.26450576]
[1734124081067,0.06452464,101530.0,101520.0,0.049234]
[1734124081268,0.06452464,101530.0,101520.0,0.53581788]
[1734124081473,0.06452464,101530.0,101520.0,2.23581788]
[1734124082261,0.06452464,101530.0,101520.0,2.29690176]
[1734124082468,0.049232,101530.0,101520.0,2.29690176]
[1734124082671,0.06452464,101530.0,101520.0,2.29690176]
[1734124082870,0.06452464,101530.0,101520.0,2.23581788]
[1734124083475,0.06452464,101530.0,101520.0,2.53046821]
[1734124084571,0.12560852,101530.0,101520.0,2.02615033]
[1734124084773,0.19860302,101530.0,101520.0,0.5315]
[1734124084976,0.67718143,101530.0,101520.0,0.5315]
[1734124085371,0.67718143,101530.0,101520.0,1.7315]
[1734124086475,0.58889429,101530.0,101520.0,1.7315]
[1734124086967,0.58889429,101530.0,101520.0,0.5]
[1734124087169,0.62099429,101530.0,101520.0,0.5]
[1734124087373,0.049234,101520.0,101510.0,2.43698733]
[1734124087572,0.049234,101520.0,101510.0,2.15586472]
[1734124087573,0.21389783,101520.0,101510.0,2.15586472]
[1734124087770,0.15281395,101520.0,101510.0,2.2169486]
[1734124088077,0.15281395,101520.0,101510.0,2.7169486]
[1734124088376,0.27059236,101520.0,101510.0,2.7169486]
[1734124088672,0.13748784,101520.0,101510.0,2.7169486]
[1734124088973,0.19857172,101520.0,101510.0,2.65586472]
[1734124089178,0.21389783,101520.0,101510.0,2.65586472]
[1734124089382,0.21389783,101520.0,101510.0,2.7169486]
[1734124089673,0.21389783,101520.0,101510.0,3.07076018]
[1734124089674,0.06456011,101520.0,101510.0,3.07076018]
[1734124091573,0.01532611,101520.0,101510.0,3.07076018]
[1734124091880,0.01532611,101520.0,101510.0,2.55723246]
[1734124092581,0.01532611,101520.0,101510.0,1.35723246]
[1734124092972,0.01532611,101520.0,101510.0,2.55723246]
[1734124094579,0.15281095,101530.0,101520.0,0.049234]
[1734124094782,0.15281095,101530.0,101520.0,0.76595606]
[1734124095083,0.15281095,101530.0,101520.0,1.26595606]
[1734124095283,0.21389483,101530.0,101520.0,1.26595606]
[1734124095485,0.15281095,101530.0,101520.0,1.26595606]
[1734124095692,0.15281095,101530.0,101520.0,1.29915606]
[1734124098685,0.27058936,101530.0,101520.0,1.29915606]
[1734124100481,0.27058936,101530.0,101520.0,1.36023994]
[1734124100482,0.10357995,101530.0,101520.0,1.36023994]
[1734124100686,0.10358179,101530.0,101520.0,1.36023994]
[1734124100883,0.10358179,101530.0,101520.0,1.32955606]
[1734124102491,0.16466567,101530.0,101520.0,1.23807218]
[1734124102676,0.21389467,101530.0,101520.0,1.20487218]
[1734124102881,0.15281079,101530.0,101520.0,1.26595606]
[1734124103483,0.13748284,101530.0,101520.0,1.61976764]
[1734124103683,0.08825384,101530.0,101520.0,1.61976764]
[1734124104179,0.1035729,101530.0,101520.0,1.26595606]
[1734124105198,0.08825384,101530.0,101520.0,1.26595606]
[1734124106286,0.13748284,101530.0,101520.0,1.26595606]
[1734124106492,0.13748284,101530.0,101520.0,1.61976764]
[1734124108698,0.22809129,101530.0,101520.0,1.06134246]
[1734124109192,0.22809129,101530.0,101520.0,2.04407218]
[1734124110595,0.16700741,101530.0,101520.0,2.10515606]
[1734124111397,0.25527593,101530.0,101520.0,2.10515606]
[1734124111989,0.25527593,101530.0,101520.0,2.46595606]
[1734124113589,0.18233059,101530.0,101520.0,2.46595606]
[1734124115693,0.2705999,101530.0,101520.0,2.46595606]
[1734124119296,0.25527672,101530.0,101520.0,2.81976764]
[1734124121599,0.18233655,101530.0,101520.0,2.81976764]
[1734124121900,0.18233655,101530.0,101520.0,2.46595606]
[1734124122415,0.18233655,101530.0,101520.0,2.81976764]
[1734124123291,0.16700741,101530.0,101520.0,2.81976764]
[1734124123593,0.18233653,101530.0,101520.0,2.81976764]
[1734124123796,0.18233655,101530.0,101520.0,2.81976764]
[1734124124801,0.16700741,101530.0,101520.0,2.46595606]
[1734124126503,0.25530481,101530.0,101520.0,2.81976764]
[1734124126900,0.25530481,101530.0,101520.0,2.92725524]
[1734124127603,0.25530481,101530.0,101520.0,1.72725524]
[1734124130800,0.16700741,101530.0,101520.0,1.37344366]
[1734124131105,0.16700741,101530.0,101520.0,1.26595606]
[1734124131706,0.18233758,101530.0,101520.0,1.26595606]
[1734124133298,0.13310858,101530.0,101520.0,1.32703994]
[1734124133504,0.20608233,101530.0,101520.0,3.04437189]
[1734124133700,0.01533167,101530.0,101520.0,2.62947643]
[1734124133907,0.11777841,101540.0,101530.0,0.049229]
[1734124134103,0.11777841,101540.0,101530.0,0.7963182]
[1734124134302,0.11777841,101540.0,101530.0,1.2963182]
[1734124137015,0.11777841,101540.0,101530.0,1.65056473]
[1734124137403,0.3867703,101550.0,101530.0,1.65056473]
[1734124137603,0.3867703,101550.0,101540.0,0.28518539]
[1734124137805,0.69087577,101550.0,101540.0,0.23596139]
[1734124138010,0.66199189,101550.0,101540.0,0.23596139]
[1734124138213,0.72307577,101550.0,101540.0,0.23596139]
[1734124138513,0.72307577,101550.0,101530.0,0.78518839]
[1734124138514,0.049224,101540.0,101530.0,0.78518839]
[1734124138703,0.76776753,101540.0,101530.0,0.78518839]
[1734124139107,0.85905141,101540.0,101530.0,0.28518839]
[1734124139907,0.68032302,101540.0,101530.0,0.28518839]
[1734124142216,0.7414069,101540.0,101530.0,0.23596139]
[1734124142612,0.92884227,101540.0,101530.0,0.23596139]
[1734124142808,0.75366102,101540.0,101530.0,0.23596139]
[1734124143115,0.91658815,101540.0,101530.0,0.23596139]
[1734124144506,0.91658815,101540.0,101520.0,2.28039771]
[1734124144709,0.25362297,101530.0,101520.0,2.4993222]
[1734124145017,0.22797589,101530.0,101520.0,2.4993222]
[1734124146308,0.22797589,101530.0,101520.0,1.2993222]
[1734124146517,0.26097589,101530.0,101520.0,1.2993222]
[1734124148211,0.26097589,101530.0,101520.0,1.48524469]
[1734124148212,0.13298252,101530.0,101520.0,1.48524469]
[1734124148408,0.01531951,101530.0,101520.0,1.38644529]
[1734124148607,0.18220752,101540.0,101530.0,0.049229]
[1734124148809,0.11766301,101540.0,101530.0,1.15262395]
[1734124149111,0.12913488,101550.0,101540.0,0.049224]
[1734124149316,0.11914091,101550.0,101540.0,1.03483628]
[1734124149525,0.11914091,101550.0,101540.0,1.53483628]
[1734124150014,0.11766301,101550.0,101540.0,1.53483628]
[1734124150214,0.01531337,101550.0,101540.0,1.65315908]
[1734124151124,0.01531337,101550.0,101540.0,1.29891255]
[1734124152010,0.26935597,101560.0,101540.0,1.23782867]
[1734124152212,0.26935597,101560.0,101550.0,0.28498998]
[1734124152524,0.26935597,101560.0,101550.0,1.98498998]
[1734124152819,0.26885597,101560.0,101550.0,1.98498998]
[1734124153819,0.26935597,101560.0,101550.0,1.98498998]
[1734124155410,0.69123985,101560.0,101550.0,0.5]
[1734124155616,0.049219,101550.0,101540.0,0.78499398]
[1734124155818,0.2604968,101550.0,101540.0,0.28499398]
[1734124156016,0.2604968,101550.0,101540.0,0.549223]
[1734124156322,0.275794,101550.0,101540.0,0.28499398]
[1734124156510,0.6212968,101550.0,101540.0,0.5]
[1734124156713,0.6514968,101550.0,101540.0,0.5]
[1734124157023,0.049224,101540.0,101530.0,1.93918086]
[1734124157227,0.0645205,101540.0,101530.0,1.93918086]
[1734124157617,0.0645205,101540.0,101530.0,2.43918086]
[1734124157916,0.0645205,101540.0,101530.0,2.73408553]
[1734124158120,0.0645205,101540.0,101530.0,2.76408553]
[1734124159223,0.06452203,101540.0,101530.0,2.76408553]
[1734124161218,0.06452203,101540.0,101530.0,2.46918086]
[1734124163322,0.06452203,101540.0,101530.0,2.32887098]
[1734124163512,0.12560591,101540.0,101530.0,2.32887098]
[1734124164923,0.06452203,101540.0,101530.0,2.37809998]
[1734124165229,0.07419277,101540.0,101530.0,2.43918386]
[1734124165523,0.13527665,101540.0,101530.0,2.37809998]
[1734124165729,0.13528185,101540.0,101530.0,2.37809998]
[1734124166025,0.07419797,101540.0,101530.0,2.43918386]
[1734124167013,0.07419797,101540.0,101530.0,2.37809998]
[1734124167223,0.07419797,101540.0,101530.0,2.43918386]
[1734124173433,0.07420532,101540.0,101530.0,2.43918386]
[1734124174122,0.19169924,101540.0,101530.0,2.73408853]
[1734124174323,0.19169924,101540.0,101530.0,2.43918386]
[1734124175330,0.19169924,101540.0,101530.0,2.73408853]
[1734124175733,0.19170735,101540.0,101530.0,2.73408853]
[1734124177830,0.31387511,101540.0,101530.0,2.59147565]
[1734124178135,0.69055642,101540.0,101530.0,0.53080387]
[1734124178335,0.83777156,101540.0,101530.0,0.2358992]
[1734124178533,0.83777156,101540.0,101530.0,0.41286615]
[1734124178730,0.72027764,101540.0,101530.0,0.41286615]
[1734124178932,0.83437501,101540.0,101530.0,0.17696695]
[1734124179131,0.84644264,101540.0,101520.0,2.22318303]
[1734124179327,0.19247333,101530.0,101520.0,2.34112075]
[1734124179522,0.16685053,101530.0,101520.0,2.22314827]
[1734124179726,0.22793441,101530.0,101520.0,2.22314827]
[1734124185535,0.22793441,101530.0,101520.0,2.17391527]
[1734124186037,0.22793441,101530.0,101520.0,2.11283139]
[1734124186234,0.26103441,101530.0,101520.0,2.11283139]
[1734124186444,0.19995053,101530.0,101520.0,2.11283139]
[1734124186744,0.26103441,101530.0,101520.0,2.17391527]
[1734124187134,0.26103441,101530.0,101520.0,2.11283139]
[1734124191438,0.27634814,101530.0,101520.0,1.9358992]
[1734124192136,0.26103441,101530.0,101520.0,1.9358992]
[1734124192336,0.27634872,101530.0,101520.0,1.9358992]
[1734124194143,0.27634872,101530.0,101520.0,0.7358992]
[1734124195739,0.26103441,101530.0,101520.0,0.7358992]
[1734124195939,0.27635294,101530.0,101520.0,0.7358992]
[1734124196849,0.27635294,101530.0,101520.0,0.79698308]
[1734124198133,0.27635294,101530.0,101520.0,0.97388162]
[1734124198134,0.26103441,101530.0,101520.0,0.97388162]
[1734124200948,0.19995053,101530.0,101520.0,0.97388162]
[1734124201149,0.16685053,101530.0,101520.0,1.4449995]
[1734124201344,0.16685053,101530.0,101520.0,1.5773573]
[1734124201650,0.06455379,101530.0,101520.0,1.51627342]
[1734124202249,0.22793441,101530.0,101520.0,1.04515554]
[1734124202454,0.22793441,101530.0,101520.0,0.74892388]
[1734124202741,0.25973441,101530.0,101520.0,0.41287538]
[1734124202948,0.40676301,101530.0,101520.0,0.41287538]
[1734124204542,0.40676301,101530.0,101520.0,0.47395926]
[1734124204740,0.40676301,101530.0,101520.0,0.97395926]
[1734124204944,0.40676301,101530.0,101520.0,0.47395926]
[1734124205143,0.40676301,101530.0,101520.0,0.29701177]
[1734124205339,0.40676301,101530.0,101520.0,0.97402941]
[1734124205745,0.40676301,101530.0,101520.0,0.47402941]
[1734124205944,0.40676301,101530.0,101520.0,0.97402941]
[1734124206148,0.40676301,101530.0,101520.0,1.31022079]
[1734124206348,0.40676301,101530.0,101520.0,1.24913691]
[1734124207650,0.28914148,101530.0,101520.0,1.24913691]
[1734124207839,0.28914148,101530.0,101520.0,1.31022079]
[1734124208757,0.28914148,101530.0,101520.0,1.24913691]
[1734124210452,0.28914148,101530.0,101520.0,1.01320902]
[1734124211157,0.28914148,101530.0,101520.0,1.24942881]
[1734124211748,0.28914148,101530.0,101520.0,1.31051269]
[1734124214160,0.28914148,101530.0,101520.0,2.51051269]
[1734124216043,0.28914148,101530.0,101520.0,2.44942881]
[1734124216958,0.25734148,101530.0,101520.0,2.44942881]
[1734124219356,0.25734148,101530.0,101520.0,1.24942881]
[1734124219557,0.5570576,101530.0,101520.0,0.23621979]
[1734124219760,0.67922536,101530.0,101520.0,0.23621979]
[1734124219965,0.85440661,101530.0,101520.0,0.23621979]
[1734124220158,0.82352273,101530.0,101520.0,0.05827443]
[1734124220557,0.64834148,101530.0,101520.0,0.05827443]
[1734124222961,0.6887668,101530.0,101520.0,0.05827443]
[1734124223458,0.67649413,101530.0,101520.0,0.05827443]
[1734124223970,0.6887668,101530.0,101520.0,0.05827443]
[1734124224261,0.61834903,101530.0,101520.0,0.11935831]
[1734124224457,0.61834903,101530.0,101520.0,0.05827443]
[1734124225455,0.61834903,101530.0,101520.0,1.25827443]
[1734124227166,0.61834903,101530.0,101520.0,1.2]
[1734124227167,0.65856267,101530.0,101520.0,1.2]
[1734124227857,0.64629413,101530.0,101520.0,1.2]
[1734124228053,0.65855746,101530.0,101520.0,1.2]
[1734124228664,0.7323713,101530.0,101520.0,1.2]
[1734124228871,0.79345518,101530.0,101520.0,1.2]
[1734124230065,0.049234,101520.0,101510.0,0.90694267]
[1734124230266,0.22800998,101520.0,101510.0,0.90694267]
[1734124230771,0.22800998,101520.0,101510.0,2.10694267]
[1734124230967,0.22800998,101520.0,101510.0,2.10644267]
[1734124231864,0.22800998,101520.0,101510.0,2.10694267]
[1734124233069,0.37517103,101520.0,101510.0,2.10694267]
[1734124234375,0.31408715,101520.0,101510.0,2.10694267]
[1734124234570,0.37517103,101520.0,101510.0,2.10694267]
[1734124234960,0.37517103,101520.0,101510.0,2.10644267]
[1734124236466,0.37517103,101520.0,101510.0,0.85720467]
[1734124236672,0.37517103,101520.0,101510.0,0.82490467]
[1734124236872,0.38500307,101520.0,101510.0,0.82490467]
[1734124242578,0.26731097,101520.0,101510.0,2.02490467]
[1734124242774,0.38506276,101520.0,101510.0,2.02490467]
[1734124243476,0.26731097,101520.0,101510.0,2.02490467]
[1734124244684,0.38507282,101520.0,101510.0,2.02490467]
[1734124247283,0.26731097,101520.0,101510.0,2.02490467]
[1734124255597,0.20622709,101520.0,101510.0,2.08598855]
[1734124255898,0.20622709,101520.0,101510.0,2.13522655]
[1734124256103,0.26731097,101520.0,101510.0,2.13522655]
[1734124256801,0.26731097,101520.0,101510.0,0.93522655]
[1734124257302,0.26731097,101520.0,101510.0,2.13522655]
[1734124260206,0.26731097,101520.0,101510.0,2.08598855]
[1734124261904,0.20622709,101520.0,101510.0,2.08598855]
[1734124262098,0.26731097,101520.0,101510.0,2.08598855]
[1734124262501,0.20622709,101520.0,101510.0,2.08598855]
[1734124263298,0.26731097,101520.0,101510.0,2.08598855]
[1734124263799,0.20622709,101520.0,101510.0,2.08598855]
[1734124264103,0.32399695,101520.0,101510.0,2.44678855]
[1734124264309,0.25532193,101520.0,101510.0,1.52393989]
[1734124264500,0.25532193,101520.0,101510.0,1.77776114]
[1734124264699,0.25532193,101520.0,101510.0,2.91667726]
[1734124264900,0.25532193,101520.0,101510.0,2.97776114]
[1734124265307,0.27065196,101520.0,101510.0,2.72393989]
[1734124265607,0.1528821,101520.0,101510.0,2.61645229]
[1734124266009,0.1528821,101520.0,101510.0,2.49428453]
[1734124266209,0.1528821,101520.0,101510.0,2.55536841]
[1734124266611,0.1528821,101520.0,101510.0,2.91667726]
[1734124267310,0.1528821,101520.0,101510.0,2.66285601]
[1734124267905,0.13755207,101520.0,101510.0,2.30860948]
[1734124268105,0.13755207,101520.0,101510.0,2.20112188]
[1734124268305,0.13755207,101520.0,101510.0,2.49615574]
[1734124268706,0.13755207,101520.0,101510.0,2.38583386]
[1734124268902,0.19863595,101520.0,101510.0,1.18583386]
[1734124269100,0.31640581,101520.0,101510.0,1.18583386]
[1734124269298,0.22808774,101520.0,101510.0,1.18583386]
[1734124269706,0.16700386,101520.0,101510.0,1.18583386]
[1734124269906,0.22808774,101520.0,101510.0,1.24691774]
[1734124270114,0.16700386,101520.0,101510.0,1.24691774]
[1734124270304,0.31632269,101520.0,101510.0,1.21691774]
[1734124270503,0.37942269,101520.0,101510.0,1.21691774]
[1734124270909,0.37942269,101520.0,101510.0,1.15583386]
[1734124272314,0.37942269,101520.0,101510.0,0.65583386]
[1734124272315,0.29118774,101520.0,101510.0,0.65583386]
[1734124272717,0.35227162,101520.0,101510.0,0.65583386]
[1734124273009,0.049238,101510.0,101500.0,2.57975774]
[1734124273214,0.27042639,101510.0,101500.0,2.64000162]
[1734124273511,0.27042639,101510.0,101500.0,2.57891774]
[1734124273512,0.15278499,101510.0,101500.0,2.57891774]
[1734124274011,0.27042639,101510.0,101500.0,2.57941774]
[1734124274206,0.27042639,101510.0,101500.0,2.64050162]
[1734124274406,0.15278499,101510.0,101500.0,2.64050162]
[1734124274601,0.15278392,101510.0,101500.0,2.64050162]
[1734124275007,0.15278392,101510.0,101500.0,2.99424815]
[1734124276015,0.15278392,101510.0,101500.0,2.99474815]
[1734124276415,0.15278392,101510.0,101500.0,2.64050162]
[1734124277102,0.15278392,101510.0,101500.0,2.64000162]
[1734124277707,0.15278401,101510.0,101500.0,2.64000162]
[1734124278108,0.15278401,101510.0,101500.0,2.64050162]
[1734124278815,0.15278401,101510.0,101500.0,2.68974462]
[1734124279011,0.15278401,101510.0,101500.0,2.68924462]
[1734124279516,0.16243179,101510.0,101500.0,2.68924462]
[1734124280107,0.16243179,101510.0,101500.0,2.68974462]
[1734124280509,0.16243179,101510.0,101500.0,3.04399115]
[1734124281317,0.16243179,101510.0,101500.0,2.68974462]
[1734124282813,0.28007319,101510.0,101500.0,2.68974462]
[1734124283307,0.16243179,101510.0,101500.0,2.68974462]
[1734124286226,0.16243179,101510.0,101500.0,2.62866074]
[1734124287517,0.1624312,101510.0,101500.0,2.62866074]
[1734124287718,0.1624312,101510.0,101500.0,2.98290727]
[1734124287924,0.1624312,101510.0,101500.0,2.62866074]
[1734124289820,0.1624312,101510.0,101500.0,2.98290727]
[1734124291426,0.1624312,101510.0,101500.0,2.62866074]
[1734124294218,0.16243456,101510.0,101500.0,2.62866074]
[1734124295527,0.16243456,101510.0,101500.0,2.98290727]
[1734124296213,0.28007596,101510.0,101500.0,2.98290727]
[1734124297127,0.14711509,101510.0,101500.0,2.98290727]
[1734124297327,0.26475649,101510.0,101500.0,2.98290727]
[1734124299213,0.26475649,101510.0,101500.0,2.68787341]
[1734124300224,0.25510871,101510.0,101500.0,2.94021539]
[1734124300425,0.20587071,101510.0,101500.0,3.00129927]
[1734124300622,0.20587071,101510.0,101500.0,1.90878687]
[1734124300623,0.10357399,101510.0,101500.0,1.90878687]
[1734124300823,0.10357399,101510.0,101500.0,1.55454034]
[1734124301023,0.10357399,101510.0,101500.0,2.75454034]
[1734124302626,0.10357399,101510.0,101500.0,2.75232853]
[1734124303130,0.10407399,101510.0,101500.0,2.75232853]
[1734124303822,0.10407399,101510.0,101500.0,3.15864089]
[1734124304026,0.01584468,101510.0,101500.0,3.15864089]
[1734124305834,0.01584468,101510.0,101500.0,2.75232853]
[1734124306244,0.01584468,101510.0,101500.0,2.50219836]
[1734124306436,0.01584468,101510.0,101500.0,2.85636965]
[1734124306437,0.0005,101510.0,101500.0,2.85636965]
[1734124306730,0.0005,101510.0,101500.0,2.45579464]
[1734124307630,0.0005,101510.0,101500.0,2.75579464]
[1734124310634,1e-06,101510.0,101500.0,2.75579464]
[1734124310836,0.13296626,101530.0,101500.0,3.41223717]
[1734124311035,0.10356823,101530.0,101520.0,1.60293613]
[1734124311336,0.01532486,101530.0,101520.0,2.10293613]
[1734124311525,0.01532486,101530.0,101520.0,3.36503613]
[1734124311730,0.01532486,101530.0,101520.0,3.07010409]
[1734124312335,0.01532486,101530.0,101520.0,3.36482158]
[1734124313131,0.01532486,101540.0,101530.0,0.049229]
[1734124313339,0.01532486,101540.0,101530.0,1.18049915]
[1734124313539,0.08000271,101550.0,101530.0,1.71079915]
[1734124313743,0.08000271,101550.0,101540.0,0.76781742]
[1734124314142,0.08000271,101550.0,101540.0,1.26781742]
[1734124314345,0.07852486,101550.0,101540.0,1.26781742]
[1734124314538,0.08851973,101550.0,101540.0,1.26781742]
[1734124316331,0.07319487,101550.0,101540.0,1.26781742]
[1734124316538,0.08848285,101550.0,101540.0,1.26781742]
[1734124317243,0.08848285,101550.0,101540.0,1.03219176]
[1734124318146,0.07319487,101550.0,101540.0,1.03219176]
[1734124318642,0.07319487,101550.0,101540.0,2.23219176]
[1734124318845,0.08848285,101550.0,101540.0,2.23219176]
[1734124319645,0.08847403,101550.0,101540.0,2.23219176]
[1734124321446,0.07319487,101550.0,101540.0,2.23219176]
[1734124322544,0.07319487,101550.0,101540.0,2.17110788]
[1734124322946,0.08847403,101550.0,101540.0,2.17110788]
[1734124323537,0.19877691,101550.0,101540.0,2.110024]
[1734124323738,0.19877691,101550.0,101540.0,1.610024]
[1734124323943,0.19877691,101550.0,101540.0,1.67110788]
[1734124324447,0.08847403,101550.0,101540.0,2.23219176]
[1734124325039,0.08897114,101550.0,101540.0,2.23219176]
[1734124325248,0.07369487,101550.0,101540.0,2.23219176]
[1734124325554,0.07369487,101550.0,101540.0,2.17110788]
[1734124325555,0.0889719,101550.0,101540.0,2.17110788]
[1734124326942,0.0889719,101550.0,101540.0,2.23219176]
[1734124328050,0.07369487,101550.0,101540.0,2.23219176]
[1734124328251,0.0889719,101550.0,101540.0,2.23219176]
[1734124328442,0.07369487,101550.0,101540.0,2.23219176]
[1734124330249,0.07369487,101550.0,101540.0,2.46781742]
[1734124333255,0.08899023,101550.0,101540.0,2.46781742]
[1734124334851,0.08899623,101550.0,101540.0,2.46781742]
[1734124336355,0.07369487,101550.0,101540.0,2.46781742]
[1734124336757,0.19133627,101550.0,101540.0,2.46781742]
[1734124337451,0.19133627,101550.0,101540.0,2.10701742]
[1734124337652,0.19133627,101550.0,101540.0,2.46781742]
[1734124338356,0.19133627,101550.0,101540.0,2.76250032]
[1734124340254,0.33849732,101550.0,101540.0,2.52687466]
[1734124342058,0.33799732,101550.0,101540.0,2.52687466]
[1734124342254,0.33799732,101550.0,101540.0,2.88049415]
[1734124343551,0.38721632,101550.0,101540.0,2.81941027]
[1734124343759,0.38721632,101550.0,101540.0,2.88049415]
[1734124348160,0.38721632,101550.0,101540.0,2.98798175]
[1734124350261,0.38721632,101550.0,101540.0,2.88049415]
[1734124350661,0.38721632,101550.0,101540.0,2.98798175]
[1734124352668,0.27479732,101550.0,101540.0,2.98798175]
[1734124352866,0.27479732,101550.0,101540.0,1.80497803]
[1734124352867,0.1176414,101550.0,101540.0,1.80497803]
[1734124353054,0.13297579,101550.0,101540.0,1.80554025]
[1734124353362,0.13297579,101550.0,101540.0,2.64921125]
[1734124358776,0.1176414,101550.0,101540.0,2.64921125]
[1734124358978,0.1176414,101550.0,101540.0,2.75669885]
[1734124360485,0.1176414,101550.0,101540.0,2.76666534]
[1734124362579,0.1668604,101550.0,101540.0,1.49561497]
[1734124362780,0.22794428,101550.0,101540.0,1.16625013]
[1734124362980,0.44070533,101550.0,101540.0,0.81263064]
[1734124363288,0.44070533,101550.0,101540.0,0.94124613]
[1734124363495,0.32306393,101550.0,101540.0,0.94124613]
[1734124363787,0.32306393,101550.0,101540.0,1.00233001]
[1734124366388,0.26198005,101550.0,101540.0,1.00233001]
[1734124366783,0.37966519,101550.0,101540.0,1.00233001]
[1734124367287,0.37966519,101550.0,101540.0,1.50233001]
[1734124367691,0.37966519,101550.0,101540.0,1.56341389]
[1734124367996,0.11768514,101550.0,101540.0,1.3273108]
[1734124368487,0.11768514,101550.0,101540.0,1.3573108]
[1734124368689,0.11768514,101550.0,101540.0,2.5573108]
[1734124373491,0.11768514,101550.0,101540.0,2.91093029]
[1734124374195,0.11768514,101550.0,101540.0,2.5573108]
[1734124374792,0.11768514,101550.0,101540.0,2.43514304]
[1734124375000,0.24331127,101550.0,101540.0,0.84434304]
[1734124375193,0.43654907,101550.0,101540.0,0.64146458]
[1734124375396,0.43654907,101550.0,101540.0,1.7803807]
[1734124375592,0.31886393,101550.0,101540.0,1.48526166]
[1734124375994,0.31886393,101550.0,101540.0,1.54634554]
[1734124377195,0.25778005,101550.0,101540.0,1.54634554]
[1734124377395,0.37543763,101550.0,101540.0,1.54634554]
[1734124379808,0.37543763,101550.0,101540.0,2.04634554]
[1734124382202,0.43652151,101550.0,101540.0,2.04634554]
[1734124384506,0.43652151,101550.0,101540.0,1.93603766]
[1734124384697,0.31886393,101550.0,101540.0,0.23603766]
[1734124384998,1.21592906,101550.0,101530.0,0.5316567]
[1734124385203,0.85580053,101540.0,101530.0,0.23603766]
[1734124385402,0.77752618,101540.0,101520.0,0.64147258]
[1734124385600,0.22274586,101530.0,101520.0,0.64147258]
[1734124385901,0.19725447,101530.0,101520.0,1.84147258]
[1734124386697,0.25833835,101530.0,101520.0,1.84147258]
[1734124386897,0.19725447,101530.0,101520.0,1.54635354]
[1734124387501,0.22855447,101530.0,101520.0,1.54635354]
[1734124388003,0.72682732,101530.0,101520.0,0.23603766]
[1734124388303,0.71152223,101530.0,101520.0,0.23603766]
[1734124388504,0.049234,101520.0,101510.0,0.17683881]
[1734124388805,0.5886169,101520.0,101510.0,0.17683881]
[1734124389007,0.049238,101510.0,101500.0,2.80380028]
[1734124389207,0.06453679,101510.0,101500.0,2.7427164]
[1734124390098,0.06453679,101510.0,101500.0,2.5407434]
[1734124390803,0.06453679,101510.0,101500.0,2.44759736]
[1734124391110,0.06453679,101510.0,101500.0,2.5407434]
[1734124392402,0.06453679,101510.0,101500.0,2.30470574]
[1734124393296,0.06453679,101510.0,101500.0,2.2115597]
[1734124393497,0.06453679,101510.0,101500.0,1.10470574]
[1734124394106,0.06453679,101510.0,101500.0,2.30470574]
[1734124394610,0.049238,101510.0,101500.0,2.30470574]
[1734124395108,0.0741615,101510.0,101500.0,2.30470574]
[1734124397398,0.05889489,101510.0,101500.0,2.30470574]
[1734124398210,0.01525927,101520.0,101510.0,0.049238]
[1734124398413,0.01525927,101520.0,101510.0,0.53458404]
[1734124398600,0.13626192,101530.0,101510.0,1.01844604]
[1734124398807,0.13626192,101530.0,101520.0,0.049234]
[1734124399198,0.13626192,101530.0,101520.0,0.549734]
[1734124399398,0.13626192,101530.0,101520.0,0.049734]
[1734124399802,0.13626192,101530.0,101520.0,0.549734]
[1734124400003,0.13626192,101530.0,101520.0,0.049734]
[1734124400203,0.13626192,101530.0,101520.0,0.049234]
[1734124400501,0.13626192,101530.0,101520.0,0.549234]
[1734124404303,0.12100265,101530.0,101520.0,0.549234]
[1734124405107,0.12100265,101530.0,101520.0,1.749234]
[1734124407211,0.12150265,101530.0,101520.0,1.749234]
[1734124407413,0.23900167,101530.0,101520.0,1.749234]
[1734124409207,0.23850167,101530.0,101520.0,1.81033329]
[1734124410111,0.23900167,101530.0,101520.0,1.81033329]
[1734124411315,0.23850167,101530.0,101520.0,1.81033329]
[1734124412114,0.23900167,101530.0,101520.0,1.81033329]
[1734124413104,0.23850167,101530.0,101520.0,1.81033329]
[1734124414106,0.38616272,101530.0,101520.0,1.81033329]
[1734124415406,0.38616272,101530.0,101520.0,2.04637095]
[1734124419823,0.23900167,101530.0,101520.0,2.04637095]
[1734124421324,0.38616272,101530.0,101520.0,2.04637095]